bitfinex-derivatives/quotes_BTCF0:USTF0_20250325
["timestamp","ask_amount","ask_price","bid_price","bid_amount"]
[1742945137859,0.5875842,87353.0,87352.0,0.0650382]
[1742945138161,1.1264842,87353.0,87352.0,1e-07]
[1742945138364,0.1144747,87345.0,87344.0,0.00017173]
[1742945138576,0.4769547,87345.0,87344.0,0.00017173]
[1742945139151,0.6082547,87345.0,87344.0,0.00017173]
[1742945140358,0.60779682,87345.0,87344.0,0.00017173]
[1742945140962,0.61986031,87345.0,87344.0,0.00017173]
[1742945142264,0.92899635,87345.0,87344.0,0.00017173]
[1742945142561,1.28979635,87345.0,87344.0,0.00017173]
[1742945144262,1.28979635,87345.0,87344.0,0.11017173]
[1742945144460,1.28979635,87345.0,87344.0,0.24757173]
[1742945144660,1.28979635,87345.0,87344.0,0.31287173]
[1742945148868,1.15360811,87345.0,87344.0,0.32772534]
[1742945149259,1.02230811,87345.0,87344.0,0.21772534]
[1742945149556,1.13290811,87345.0,87344.0,0.21772534]
[1742945153580,0.41130811,87345.0,87344.0,0.21772534]
[1742945153775,1.13290811,87345.0,87344.0,0.21772534]
[1742945154274,0.41130811,87345.0,87344.0,0.21772534]
[1742945154471,1.13290811,87345.0,87344.0,0.21772534]
[1742945156372,1.28197466,87345.0,87344.0,0.21772534]
[1742945159875,1.17137466,87345.0,87344.0,0.21772534]
[1742945160075,1.28197466,87345.0,87344.0,0.30772534]
[1742945161969,0.44635784,87345.0,87344.0,0.30772534]
[1742945162182,0.56083254,87345.0,87344.0,0.30772534]
[1742945162679,0.44635784,87345.0,87344.0,0.30772534]
[1742945163281,0.33575784,87345.0,87344.0,0.42220134]
[1742945163476,0.33575784,87345.0,87344.0,0.30772534]
[1742945164379,0.45023254,87345.0,87344.0,0.30772534]
[1742945164781,0.33575784,87345.0,87344.0,0.42220134]
[1742945164980,0.45023254,87345.0,87344.0,0.30772534]
[1742945165370,0.12821819,87345.0,87344.0,0.30772534]
[1742945168279,0.01374349,87345.0,87344.0,0.78300134]
[1742945171576,0.01374349,87345.0,87344.0,0.79778605]
[1742945171776,0.12821819,87345.0,87344.0,0.68331005]
[1742945172175,0.12821819,87345.0,87344.0,0.79778605]
[1742945172377,0.01374349,87345.0,87344.0,0.79778605]
[1742945173184,0.12821819,87345.0,87344.0,0.79778605]
[1742945174288,0.01374349,87345.0,87344.0,0.79778605]
[1742945174490,0.12821819,87345.0,87344.0,0.79778605]
[1742945176197,0.01374349,87345.0,87344.0,0.79778605]
[1742945177487,0.01374349,87345.0,87344.0,0.78300134]
[1742945178200,0.01374349,87345.0,87344.0,0.66852534]
[1742945179288,0.12821819,87345.0,87344.0,0.66852534]
[1742945179791,0.12821819,87345.0,87344.0,0.78300134]
[1742945183293,0.12821819,87345.0,87344.0,0.79785149]
[1742945183991,0.12821819,87345.0,87344.0,0.78300134]
[1742945187384,0.12821819,87345.0,87344.0,0.79768659]
[1742945187589,0.12821819,87345.0,87344.0,0.78300134]
[1742945191105,0.00168,87345.0,87344.0,0.78300134]
[1742945191495,0.1144714,87348.0,87347.0,0.057236]
[1742945191698,0.1282516,87348.0,87347.0,0.217236]
[1742945193999,0.1979516,87348.0,87347.0,0.217236]
[1742945195099,0.00168,87348.0,87347.0,0.22957937]
[1742945195302,0.17205984,87348.0,87347.0,0.24427373]
[1742945195800,0.28653064,87348.0,87347.0,0.2744721]
[1742945196193,0.42183064,87348.0,87347.0,0.2744721]
[1742945196903,0.43382019,87348.0,87347.0,0.2744721]
[1742945197790,0.43382019,87348.0,87347.0,0.28917938]
[1742945198192,0.26344035,87348.0,87347.0,0.28917938]
[1742945199898,0.26344035,87348.0,87347.0,0.30388374]
[1742945201589,0.19374035,87348.0,87347.0,0.30388374]
[1742945203010,0.12814035,87348.0,87347.0,0.30388374]
[1742945203199,0.12814035,87348.0,87347.0,0.37108374]
[1742945206505,0.12814035,87348.0,87347.0,0.35637938]
[1742945207099,0.01366955,87348.0,87347.0,0.37109471]
[1742945207301,0.20445581,87357.0,87350.0,0.0572341]
[1742945207513,0.20561581,87357.0,87356.0,0.4752603]
[1742945207707,0.20561581,87357.0,87356.0,0.76065563]
[1742945207708,0.20445581,87357.0,87356.0,0.76065563]
[1742945208012,0.20515793,87357.0,87356.0,0.89415563]
[1742945208310,0.20515793,87357.0,87356.0,0.97436291]
[1742945208511,0.00116,87357.0,87356.0,0.97436291]
[1742945208703,0.115619,87357.0,87356.0,0.97436291]
[1742945208909,0.00116,87357.0,87356.0,0.97436291]
[1742945209809,0.00116,87357.0,87356.0,0.95964758]
[1742945210513,0.0572278,87360.0,87359.0,0.1140564]
[1742945210714,0.0583878,87360.0,87359.0,0.3646564]
[1742945211014,0.0583878,87360.0,87359.0,0.37936368]
[1742945212302,0.1274878,87360.0,87359.0,0.37936368]
[1742945212808,0.07026,87360.0,87359.0,0.37936368]
[1742945213003,0.07026,87360.0,87359.0,0.37982156]
[1742945214021,0.00116,87360.0,87359.0,0.37982156]
[1742945214219,0.01205337,87361.0,87360.0,0.1144551]
[1742945214419,0.00137174,87361.0,87360.0,0.36982446]
[1742945214641,0.00017173,87361.0,87360.0,0.50150238]
[1742945214820,0.00017173,87361.0,87360.0,0.51623155]
[1742945215018,0.0572156,87379.0,87360.0,0.40177645]
[1742945215218,0.0572156,87379.0,87378.0,0.1144315]
[1742945215219,0.00116,87379.0,87378.0,0.1144315]
[1742945215423,0.01312859,87379.0,87378.0,0.3650315]
[1742945215619,0.01312859,87379.0,87378.0,0.37973878]
[1742945216017,0.12755879,87379.0,87378.0,0.3650315]
[1742945216418,0.01312859,87379.0,87378.0,0.5001315]
[1742945217636,0.00116,87379.0,87378.0,0.5122299]
[1742945217929,0.00116,87379.0,87378.0,0.5001315]
[1742945220127,0.00116,87379.0,87378.0,0.3857]
[1742945220332,0.1155902,87379.0,87378.0,0.5001315]
[1742945220735,0.1841902,87379.0,87378.0,0.5001315]
[1742945221224,0.00116,87379.0,87378.0,0.5001315]
[1742945221420,0.1144275,87382.0,87381.0,0.1144263]
[1742945221616,0.11566751,87382.0,87381.0,0.5173263]
[1742945222430,0.21790572,87382.0,87381.0,0.5173263]
[1742945223922,0.11535581,87382.0,87381.0,0.5173263]
[1742945224117,0.29378211,87382.0,87381.0,0.5173263]
[1742945225626,0.17935581,87382.0,87381.0,0.5173263]
[1742945225829,0.11535581,87382.0,87381.0,0.5173263]
[1742945227133,0.10347822,87382.0,87381.0,0.5173263]
[1742945227331,0.01189967,87390.0,87389.0,0.1144171]
[1742945227530,0.11044,87398.0,87397.0,0.1144066]
[1742945227730,0.11124,87398.0,87397.0,0.3950066]
[1742945228834,0.2256453,87398.0,87397.0,0.3950066]
[1742945229033,0.11124,87398.0,87397.0,0.3950066]
[1742945229227,0.18044,87398.0,87397.0,0.3950066]
[1742945229429,0.1844053,87398.0,87397.0,0.3950066]
[1742945229740,0.0008,87398.0,87397.0,0.3950066]
[1742945229925,0.0008,87398.0,87397.0,0.5305066]
[1742945230234,0.0008,87398.0,87397.0,0.8913066]
[1742945230431,0.1004,87400.0,87399.0,0.114404]
[1742945230633,0.1004,87400.0,87399.0,0.345004]
[1742945230634,0.2156027,87400.0,87399.0,0.345004]
[1742945231134,0.22780638,87400.0,87399.0,0.2306]
[1742945231543,0.22780638,87400.0,87399.0,0.345004]
[1742945231835,0.36260638,87400.0,87399.0,0.345004]
[1742945232436,0.3504027,87400.0,87399.0,0.345004]
[1742945232829,0.3504027,87400.0,87399.0,0.2306]
[1742945233429,0.3504027,87400.0,87399.0,0.2981]
[1742945234231,0.236,87400.0,87399.0,0.42716736]
[1742945234436,0.236,87400.0,87399.0,0.49286736]
[1742945234837,0.1012,87400.0,87399.0,0.49286736]
[1742945235237,0.1012,87400.0,87399.0,0.50494194]
[1742945235436,0.1004,87400.0,87399.0,0.50494194]
[1742945236029,0.1004,87400.0,87399.0,0.49027858]
[1742945236338,0.1012,87400.0,87399.0,0.49027858]
[1742945237442,0.1004,87400.0,87399.0,0.49027858]
[1742945239332,0.00017163,87406.0,87405.0,0.1143962]
[1742945239532,0.00017163,87406.0,87405.0,0.7157962]
[1742945239834,0.01178746,87413.0,87411.0,0.1143883]
[1742945239835,0.1143874,87412.0,87411.0,0.1143883]
[1742945240034,0.0008,87413.0,87412.0,0.114387]
[1742945240239,0.1108,87416.0,87412.0,0.114387]
[1742945240240,0.1147829,87416.0,87414.0,0.2287663]
[1742945240429,0.1147829,87416.0,87415.0,0.2492831]
[1742945240430,0.01300068,87416.0,87415.0,0.2492831]
[1742945240630,0.01300068,87416.0,87415.0,0.4900831]
[1742945240825,0.0012,87416.0,87415.0,0.4900831]
[1742945242332,0.0012,87416.0,87415.0,0.50183092]
[1742945242839,0.0012,87416.0,87415.0,0.4900831]
[1742945244434,0.1155818,87416.0,87415.0,0.4900831]
[1742945246433,0.1155818,87416.0,87415.0,0.3757]
[1742945246634,0.1155818,87416.0,87415.0,0.4900831]
[1742945247040,0.2497818,87416.0,87415.0,0.4900831]
[1742945257841,0.1155818,87416.0,87415.0,2.4900831]
[1742945258045,0.2366818,87416.0,87415.0,2.4900831]
[1742945263155,0.2366818,87416.0,87415.0,2.3757]
[1742945263452,0.2366818,87416.0,87415.0,2.2408]
[1742945263655,0.6582818,87416.0,87415.0,2.2408]
[1742945263959,0.6591218,87416.0,87415.0,2.2408]
[1742945265449,0.7694818,87416.0,87415.0,2.2408]
[1742945269348,1.02929516,87416.0,87415.0,2.2408]
[1742945272659,0.82509281,87416.0,87415.0,2.2408]
[1742945276661,0.94738993,87416.0,87415.0,2.2408]
[1742945280359,0.94738993,87416.0,87415.0,2.3717]
[1742945280554,0.77622993,87416.0,87415.0,2.3717]
[1742945280760,0.88658993,87416.0,87415.0,2.4383]
[1742945281374,0.65432993,87416.0,87415.0,2.4383]
[1742945281666,0.76468993,87416.0,87415.0,2.4383]
[1742945282173,0.89558993,87416.0,87415.0,2.4383]
[1742945282361,0.83158993,87416.0,87415.0,2.4383]
[1742945282562,0.76468993,87416.0,87415.0,2.4383]
[1742945283677,0.64239281,87416.0,87415.0,2.4383]
[1742945290768,0.64235281,87416.0,87415.0,2.4383]
[1742945293068,0.64235281,87416.0,87415.0,2.5526831]
[1742945293069,0.41765101,87416.0,87415.0,2.5526831]
[1742945293272,0.53203281,87416.0,87415.0,2.4383]
[1742945293577,0.53203281,87416.0,87415.0,3.9383]
[1742945293880,0.53119281,87416.0,87415.0,3.9383]
[1742945294174,0.53119281,87416.0,87415.0,2.4383]
[1742945294376,0.53199281,87416.0,87415.0,2.4383]
[1742945295776,0.7367094,87416.0,87415.0,2.4383]
[1742945299574,0.4763818,87416.0,87415.0,2.4383]
[1742945303686,0.4763818,87416.0,87415.0,2.2408]
[1742945303989,0.4763818,87416.0,87415.0,1.85583011]
[1742945304282,0.4763818,87416.0,87415.0,1.72733011]
[1742945304283,0.6712818,87416.0,87415.0,1.72733011]
[1742945304492,1.2288818,87416.0,87415.0,0.77239125]
[1742945304784,0.1143922,87408.0,87407.0,3e-08]
[1742945304985,0.58671221,87408.0,87407.0,3e-08]
[1742945305191,0.73671221,87408.0,87407.0,3e-08]
[1742945306993,0.1144014,87401.0,87400.0,0.13160003]
[1742945307293,0.47640141,87401.0,87400.0,0.13220003]
[1742945307591,0.47640141,87401.0,87400.0,0.13160003]
[1742945308182,0.50580141,87401.0,87400.0,0.13160003]
[1742945309592,0.50534378,87401.0,87400.0,0.13160003]
[1742945310581,0.47594378,87401.0,87400.0,0.13160003]
[1742945310793,0.53155754,87401.0,87400.0,0.13160003]
[1742945312089,0.64187754,87401.0,87400.0,0.13120003]
[1742945313985,0.66657754,87401.0,87400.0,0.13120003]
[1742945314381,0.66611991,87401.0,87400.0,0.13120003]
[1742945316900,0.66611991,87401.0,87400.0,0.13080003]
[1742945319295,0.65766228,87401.0,87400.0,0.13080003]
[1742945321796,0.65766228,87401.0,87400.0,0.13040003]
[1742945322904,0.60204852,87401.0,87400.0,0.13040003]
[1742945323504,0.1144119,87393.0,87392.0,0.06637163]
[1742945323810,0.47641191,87393.0,87392.0,0.03335923]
[1742945324005,0.50181191,87393.0,87392.0,3e-08]
[1742945324197,0.50135428,87393.0,87392.0,3e-08]
[1742945324517,0.1144132,87392.0,87391.0,4e-08]
[1742945324806,0.1144341,87376.0,87375.0,0.00037775]
[1742945325008,0.95932319,87376.0,87375.0,0.02037775]
[1742945325610,1.03402319,87376.0,87375.0,0.02037775]
[1742945326694,1.03402319,87376.0,87375.0,0.08217775]
[1742945327307,1.04274225,87376.0,87375.0,0.08217775]
[1742945328409,1.04474225,87376.0,87375.0,0.08217775]
[1742945328811,1.04474225,87376.0,87375.0,0.14677775]
[1742945329625,1.04474225,87376.0,87375.0,0.21377775]
[1742945332010,0.97004225,87376.0,87375.0,0.21377775]
[1742945333914,1.02568494,87376.0,87375.0,0.21377775]
[1742945342023,0.91536494,87376.0,87375.0,0.21377775]
[1742945342205,1.02568494,87376.0,87375.0,0.21377775]
[1742945344318,0.90664588,87376.0,87375.0,0.21377775]
[1742945344525,0.81256588,87376.0,87375.0,0.21377775]
[1742945344714,0.56711998,87376.0,87375.0,0.21377775]
[1742945344907,0.46878312,87376.0,87375.0,0.21437775]
[1742945345312,0.56711998,87376.0,87375.0,0.21437775]
[1742945345513,0.2256741,87376.0,87375.0,0.21437775]
[1742945346627,0.1153541,87376.0,87375.0,0.21437775]
[1742945348918,0.1163541,87376.0,87375.0,0.21437775]
[1742945349123,0.1163541,87376.0,87375.0,0.32881315]
[1742945349326,0.00192,87376.0,87375.0,0.32881315]
[1742945349521,0.1154341,87376.0,87375.0,0.32881315]
[1742945349827,0.1162741,87376.0,87375.0,0.32881315]
[1742945350023,0.1152741,87376.0,87375.0,0.32881315]
[1742945355525,0.00084,87376.0,87375.0,0.32881315]
[1742945357215,0.11032,87382.0,87381.0,0.1144276]
[1742945357420,0.11120001,87382.0,87381.0,0.3750676]
[1742945358032,0.11120001,87382.0,87381.0,0.5019676]
[1742945358229,0.22562631,87382.0,87381.0,0.5019676]
[1742945358623,0.22662631,87382.0,87381.0,0.5019676]
[1742945358829,0.22662631,87382.0,87381.0,2.0019676]
[1742945359233,0.11220001,87382.0,87381.0,2.0019676]
[1742945359533,0.11132,87382.0,87381.0,2.0019676]
[1742945362530,0.1144226,87385.0,87381.0,2.0019676]
[1742945362531,0.11028,87385.0,87383.0,0.0572121]
[1742945362730,0.10208686,87387.0,87386.0,0.114421]
[1742945362935,0.10296687,87387.0,87386.0,0.375061]
[1742945363934,0.10250916,87387.0,87386.0,0.375061]
[1742945364433,0.10250916,87387.0,87386.0,0.74746764]
[1742945364632,0.10162915,87387.0,87386.0,0.74746764]
[1742945366035,0.10262915,87387.0,87386.0,0.74746764]
[1742945366234,0.001,87387.0,87386.0,0.74746764]
[1742945366435,0.001,87387.0,87386.0,0.74706764]
[1742945369334,0.00054229,87387.0,87386.0,0.74706764]
[1742945370540,0.00017163,87395.0,87394.0,0.1144105]
[1742945370741,0.00101163,87395.0,87394.0,0.7360505]
[1742945371333,0.00101163,87395.0,87394.0,0.8639505]
[1742945371740,0.00101163,87395.0,87394.0,0.8635505]
[1742945372640,0.00117163,87395.0,87394.0,0.8635505]
[1742945372937,0.00201163,87395.0,87394.0,0.8635505]
[1742945373138,0.00117163,87395.0,87394.0,0.8635505]
[1742945373530,0.00117163,87395.0,87394.0,2.3635505]
[1742945378839,0.0004,87400.0,87399.0,0.114404]
[1742945379145,0.0004,87400.0,87399.0,0.375004]
[1742945379346,0.0004,87400.0,87399.0,0.510904]
[1742945379643,0.0004,87400.0,87399.0,0.52254178]
[1742945380237,0.0014,87400.0,87399.0,0.52254178]
[1742945387954,0.0014,87400.0,87399.0,0.88334178]
[1742945394249,0.0682,87409.0,87399.0,0.76893778]
[1742945394458,0.1321,87413.0,87410.0,0.1143896]
[1742945394660,0.13695581,87411.0,87410.0,0.3952296]
[1742945394845,0.13695581,87411.0,87410.0,0.5294296]
[1742945395051,0.13611581,87411.0,87410.0,0.5294296]
[1742945395247,0.13703581,87411.0,87410.0,0.5294296]
[1742945395657,0.00092,87411.0,87410.0,0.5962296]
[1742945399547,0.0663,87415.0,87414.0,0.1143844]
[1742945399750,0.06714,87415.0,87414.0,0.3749844]
[1742945400350,0.06714,87415.0,87414.0,0.5088844]
[1742945400856,0.06714,87415.0,87414.0,0.4419844]
[1742945401161,0.13024,87415.0,87414.0,0.3749844]
[1742945402946,0.0004,87416.0,87415.0,0.1143831]
[1742945403162,0.00108,87416.0,87415.0,0.8223631]
[1742945403361,0.00108,87416.0,87415.0,0.8872631]
[1742945403560,0.00108,87416.0,87415.0,2.3872631]
[1742945403862,0.0004,87416.0,87415.0,2.3872631]
[1742945404262,0.0004,87416.0,87415.0,0.8872631]
[1742945404460,0.00100001,87416.0,87415.0,0.8872631]
[1742945404975,0.0004,87416.0,87415.0,0.8872631]
[1742945405361,0.00100001,87416.0,87415.0,0.8872631]
[1742945405665,0.11538181,87416.0,87415.0,0.3950631]
[1742945405864,0.47618181,87416.0,87415.0,0.3950631]
[1742945406462,0.59818181,87416.0,87415.0,0.3950631]
[1742945409260,0.59818181,87416.0,87415.0,0.28068]
[1742945409452,0.59818181,87416.0,87415.0,0.27531445]
[1742945415272,0.77400186,87416.0,87415.0,0.27531445]
[1742945416974,0.92400186,87416.0,87415.0,0.27531445]
[1742945417264,0.77400186,87416.0,87415.0,0.27531445]
[1742945419667,0.65380121,87416.0,87415.0,0.27531445]
[1742945421971,1.01460121,87416.0,87415.0,0.27531445]
[1742945426163,1.01460121,87416.0,87415.0,0.33981445]
[1742945427279,1.01460121,87416.0,87415.0,0.40321445]
[1742945427580,1.01460121,87416.0,87415.0,0.40381445]
[1742945427882,1.21883276,87416.0,87415.0,0.40381445]
[1742945428076,1.21883276,87416.0,87415.0,0.40321445]
[1742945429178,0.1143935,87407.0,87406.0,6e-08]
[1742945429376,0.58599351,87407.0,87406.0,6e-08]
[1742945429978,0.1143948,87406.0,87405.0,6e-08]
[1742945430171,0.23729481,87406.0,87405.0,6e-08]
[1742945431088,0.1144119,87393.0,87392.0,0.1312]
[1742945431387,0.58625191,87393.0,87392.0,0.2318]
[1742945432289,0.60102368,87393.0,87392.0,0.2318]
[1742945432582,0.60102368,87393.0,87392.0,0.296]
[1742945436589,0.73723015,87393.0,87392.0,0.296]
[1742945437575,0.62679015,87393.0,87392.0,0.296]
[1742945437775,0.61201838,87393.0,87392.0,0.296]
[1742945437980,0.17065803,87400.0,87396.0,0.0572036]
[1742945438184,0.114397,87405.0,87404.0,0.1143962]
[1742945438385,0.114397,87405.0,87404.0,0.3651962]
[1742945438587,0.115157,87405.0,87404.0,1.8651962]
[1742945438892,0.114397,87405.0,87404.0,1.8651962]
[1742945439882,0.11393937,87405.0,87404.0,1.8651962]
[1742945441891,0.11393937,87405.0,87404.0,2.00484435]
[1742945442185,0.20430971,87413.0,87408.0,0.0571958]
[1742945442506,0.20490972,87413.0,87412.0,0.3608]
[1742945442687,0.20566972,87413.0,87412.0,0.62156]
[1742945442883,0.20506971,87413.0,87412.0,0.735547]
[1742945443186,0.31945541,87413.0,87412.0,0.735547]
[1742945443492,0.20506971,87413.0,87412.0,0.735547]
[1742945443689,0.20506971,87413.0,87412.0,0.860447]
[1742945444190,0.00076,87413.0,87412.0,0.860447]
[1742945444392,0.1143857,87413.0,87412.0,0.860447]
[1742945444689,0.1151457,87413.0,87412.0,0.860447]
[1742945444886,0.1143857,87413.0,87412.0,0.860447]
[1742945445093,0.1151857,87413.0,87412.0,0.860447]
[1742945445279,0.0008,87413.0,87412.0,0.860447]
[1742945445484,0.0571921,87415.0,87413.0,0.1143857]
[1742945445685,0.0571921,87415.0,87413.0,0.3551457]
[1742945445988,0.0004,87416.0,87413.0,0.4835457]
[1742945445989,0.1147819,87416.0,87413.0,0.4835457]
[1742945446185,0.00093163,87414.0,87413.0,0.4835457]
[1742945447789,0.00017163,87414.0,87413.0,0.4835457]
[1742945448093,0.00097163,87414.0,87413.0,0.4835457]
[1742945450176,0.00097163,87414.0,87413.0,0.5488457]
[1742945456191,0.00017163,87414.0,87413.0,0.5488457]
[1742945457493,0.00101163,87414.0,87413.0,0.5488457]
[1742945460390,0.00017163,87414.0,87413.0,0.5488457]
[1742945462387,0.00093163,87414.0,87413.0,0.5488457]
[1742945463088,0.03669715,87417.0,87413.0,0.5488457]
[1742945463089,0.10521102,87419.0,87418.0,0.1143791]
[1742945463397,0.10521102,87419.0,87418.0,0.3853391]
[1742945463398,0.10617103,87419.0,87418.0,0.3853391]
[1742945463596,0.10571349,87419.0,87418.0,0.3853391]
[1742945463795,0.10571349,87419.0,87418.0,0.5210391]
[1742945464094,0.10874572,87427.0,87418.0,0.5210391]
[1742945464095,0.01810731,87431.0,87422.0,0.0571869]
[1742945464397,0.01810731,87431.0,87428.0,0.1143661]
[1742945464595,0.02290254,87429.0,87428.0,0.3756461]
[1742945464783,0.02158254,87429.0,87428.0,2.0113461]
[1742945465701,0.09028254,87429.0,87428.0,2.0113461]
[1742945465897,0.09028254,87429.0,87428.0,2.0109461]
[1742945466092,0.09028254,87429.0,87428.0,2.02470903]
[1742945466384,0.01810731,87431.0,87429.0,0.1143647]
[1742945466584,0.01810731,87431.0,87429.0,0.8478447]
[1742945467096,0.01810731,87431.0,87429.0,2.3478447]
[1742945469397,0.01810731,87431.0,87430.0,0.1143634]
[1742945469602,0.01810731,87431.0,87430.0,0.4989434]
[1742945470501,0.01938731,87431.0,87430.0,0.4989434]
[1742945470701,0.01938731,87431.0,87430.0,1.9989434]
[1742945470896,0.01810731,87431.0,87430.0,1.9989434]
[1742945474002,0.01810731,87431.0,87430.0,2.7205434]
[1742945476400,0.08500731,87431.0,87430.0,2.7205434]
[1742945478104,1e-08,87436.0,87435.0,0.1143569]
[1742945478294,1e-08,87436.0,87435.0,0.3656369]
[1742945478893,0.13120001,87436.0,87435.0,0.5011369]
[1742945480195,0.13074254,87436.0,87435.0,0.5011369]
[1742945480809,0.13074254,87436.0,87435.0,0.50967732]
[1742945482496,0.13074254,87436.0,87435.0,0.50927732]
[1742945484896,0.13028508,87436.0,87435.0,0.50927732]
[1742945486807,0.24464068,87436.0,87435.0,0.1152369]
[1742945487102,0.1143661,87428.0,87427.0,0.26257905]
[1742945487300,0.1143661,87428.0,87427.0,0.36345905]
[1742945487301,0.4760861,87428.0,87427.0,0.36345905]
[1742945488104,0.5396861,87428.0,87427.0,0.36345905]
[1742945488698,0.5396861,87428.0,87427.0,0.158063]
[1742945490312,0.6046861,87428.0,87427.0,0.158063]
[1742945491996,0.49032,87428.0,87427.0,0.158063]
[1742945492207,0.12952,87428.0,87427.0,0.158063]
[1742945493510,0.2438861,87428.0,87427.0,0.158063]
[1742945494610,0.12952,87428.0,87427.0,0.158063]
[1742945494913,0.2438861,87428.0,87427.0,0.158063]
[1742945495601,0.2438861,87428.0,87427.0,0.10088]
[1742945498911,0.34621258,87428.0,87427.0,0.10088]
[1742945503308,0.34621258,87428.0,87420.0,0.00017163]
[1742945503309,0.1143922,87408.0,87407.0,0.00045763]
[1742945503509,0.2251922,87408.0,87407.0,0.17105763]
[1742945503806,0.2251922,87408.0,87407.0,0.17165763]
[1742945504009,0.2251922,87408.0,87407.0,0.17105763]
[1742945504610,0.2909922,87408.0,87407.0,0.17105763]
[1742945505918,0.6517922,87408.0,87407.0,0.17105763]
[1742945506107,0.66573122,87408.0,87407.0,0.17105763]
[1742945508115,0.67435754,87408.0,87407.0,0.17105763]
[1742945509916,0.67435754,87408.0,87407.0,0.17045763]
[1742945511023,0.67435754,87408.0,87407.0,0.17105763]
[1742945513323,0.66573122,87408.0,87407.0,0.17105763]
[1742945517115,0.73433122,87408.0,87407.0,0.17105763]
[1742945520715,0.1143962,87405.0,87403.0,8e-05]
[1742945520918,0.1144132,87392.0,87389.0,0.04]
[1742945521122,0.5861732,87392.0,87391.0,0.18045771]
[1742945521321,0.5861732,87392.0,87391.0,0.18105771]
[1742945521523,0.5861732,87392.0,87391.0,0.18045771]
[1742945522131,0.7162732,87392.0,87391.0,0.18045771]
[1742945522726,0.5393132,87392.0,87391.0,0.18045771]
[1742945522925,0.6495132,87392.0,87391.0,0.18105771]
[1742945523121,0.6495132,87392.0,87391.0,0.18045771]
[1742945523426,0.6633234,87392.0,87391.0,0.18045771]
[1742945524235,0.6633234,87392.0,87391.0,0.18105771]
[1742945526029,0.7291234,87392.0,87391.0,0.18105771]
[1742945528426,0.73809111,87392.0,87391.0,0.18105771]
[1742945530838,0.73809611,87392.0,87391.0,0.18105771]
[1742945536342,0.37729611,87392.0,87391.0,0.18105771]
[1742945536540,0.73809611,87392.0,87391.0,0.18105771]
[1742945538237,0.73911893,87392.0,87391.0,0.18105771]
[1742945539231,0.73909585,87392.0,87391.0,0.18105771]
[1742945540245,0.73809585,87392.0,87391.0,0.18105771]
[1742945540436,0.73909585,87392.0,87391.0,0.18105771]
[1742945540948,0.48498565,87392.0,87391.0,0.18105771]
[1742945541137,0.1243584,87392.0,87391.0,0.18105771]
[1742945542146,0.1235584,87392.0,87391.0,0.37485771]
[1742945542343,0.1144132,87392.0,87391.0,0.37485771]
[1742945543035,0.1151732,87392.0,87391.0,0.37485771]
[1742945543335,0.1141732,87392.0,87391.0,0.38827138]
[1742945543535,0.1144132,87392.0,87391.0,0.38827138]
[1742945544846,0.1151332,87392.0,87391.0,0.38827138]
[1742945545245,0.1151332,87392.0,87391.0,0.37485771]
[1742945546045,0.1286188,87392.0,87391.0,0.37485771]
[1742945546551,0.13751001,87392.0,87391.0,0.37485771]
[1742945546753,0.1151332,87392.0,87391.0,0.37485771]
[1742945547144,0.12402441,87392.0,87391.0,0.37485771]
[1742945547752,0.1151332,87392.0,87391.0,0.37485771]
[1742945548454,0.1240444,87392.0,87391.0,0.37485771]
[1742945549948,0.12402152,87392.0,87391.0,0.37485771]
[1742945550354,0.18742152,87392.0,87391.0,0.37485771]
[1742945551551,0.25112152,87392.0,87391.0,0.37485771]
[1742945552656,0.2422332,87392.0,87391.0,0.37485771]
[1742945558159,0.2422332,87392.0,87391.0,0.48927221]
[1742945559857,0.2422332,87392.0,87391.0,0.37485771]
[1742945560253,0.2422332,87392.0,87391.0,0.31005771]
[1742945560449,0.2422332,87392.0,87391.0,0.18105771]
[1742945562051,0.2422332,87392.0,87391.0,0.31375771]
[1742945562553,0.2422332,87392.0,87391.0,0.24525771]
[1742945564561,0.2978539,87392.0,87391.0,0.24525771]
[1742945576872,0.2978539,87392.0,87391.0,0.18105771]
[1742945577065,0.1144236,87384.0,87383.0,0.00017163]
[1742945577272,0.2256236,87384.0,87383.0,0.39551663]
[1742945577584,0.2256236,87384.0,87383.0,0.28109163]
[1742945577773,0.3596236,87384.0,87383.0,0.39551663]
[1742945578371,0.3606236,87384.0,87383.0,0.39551663]
[1742945579169,0.3610236,87384.0,87383.0,0.39551663]
[1742945579777,0.37438587,87384.0,87383.0,0.28109163]
[1742945580168,0.37438587,87384.0,87383.0,0.39551663]
[1742945581777,0.37438587,87384.0,87383.0,0.40898011]
[1742945582367,0.37438587,87384.0,87383.0,0.39551663]
[1742945584075,0.3610236,87384.0,87383.0,0.39551663]
[1742945584272,0.2924236,87384.0,87383.0,0.39551663]
[1742945586884,0.2924236,87384.0,87383.0,0.40854569]
[1742945587466,0.2924236,87384.0,87383.0,0.39551663]
[1742945587673,0.3613236,87384.0,87383.0,0.39551663]
[1742945588168,0.4315236,87384.0,87383.0,0.28109163]
[1742945588383,0.4315236,87384.0,87383.0,0.39551663]
[1742945588979,0.4315236,87384.0,87383.0,0.28109163]
[1742945589285,0.1144263,87382.0,87381.0,8e-05]
[1742945589584,0.1157063,87382.0,87381.0,0.2]
[1742945589774,0.1157063,87382.0,87381.0,0.2006]
[1742945591875,0.1157063,87382.0,87381.0,0.2669]
[1742945592485,0.1167063,87382.0,87381.0,0.2669]
[1742945593182,0.17233695,87382.0,87381.0,0.2669]
[1742945593382,0.17233695,87382.0,87381.0,0.3331]
[1742945593773,0.30663695,87382.0,87381.0,0.3331]
[1742945594383,0.30663695,87382.0,87381.0,0.4475276]
[1742945595185,0.30663695,87382.0,87381.0,0.3331]
[1742945596378,0.05791065,87382.0,87381.0,0.4475276]
[1742945596889,0.17233695,87382.0,87381.0,1.9475276]
[1742945597071,0.05663065,87382.0,87381.0,1.96073875]
[1742945598376,0.05783066,87382.0,87381.0,1.96073875]
[1742945598586,0.17105695,87382.0,87381.0,0.46073875]
[1742945598793,0.17225696,87382.0,87381.0,0.46073875]
[1742945601190,0.11662631,87382.0,87381.0,0.46073875]
[1742945602776,0.11662631,87382.0,87381.0,0.4475276]
[1742945603175,0.18172631,87382.0,87381.0,0.4475276]
[1742945606794,0.06730001,87382.0,87381.0,0.4475276]
[1742945608184,0.13666201,87389.0,87388.0,0.1144184]
[1742945608397,0.13750201,87389.0,87388.0,0.7558184]
[1742945608882,0.25191911,87389.0,87388.0,0.7558184]
[1742945609189,0.32001911,87389.0,87388.0,2.4668184]
[1742945609390,0.31917911,87389.0,87388.0,2.4668184]
[1742945609786,0.1825171,87389.0,87388.0,2.4668184]
[1742945609978,0.18205939,87389.0,87388.0,2.4668184]
[1742945610177,0.0681,87389.0,87388.0,2.4668184]
[1742945610597,0.11037163,87392.0,87391.0,0.1144145]
[1742945610788,0.29638483,87392.0,87391.0,0.3650145]
[1742945611289,0.29638483,87392.0,87391.0,0.4362145]
[1742945611986,0.36532483,87392.0,87391.0,0.5089145]